[Event "Titled Tuesday Blitz March 07 Early 2023"]
[White "Kohler, Aran"]
[Black "sissahungrychess"]
[WhiteFideId "1002856"]
[WhiteElo "2241"]
[BlackElo "2397"]
[Result "0-1"]
[Round "05"]
[TimeControl "180+2"]
[Date "2023.03.07"]
[WhiteClock "0:00:24"]
[BlackClock "0:00:25"]

1. Nf3 {[%clk 0:02:58]}  d5 {[%clk 0:02:51]} 2. d4 {[%clk 0:02:59]}  Nf6 {[%clk 0:02:51]} 3. Bg5 {[%clk 0:02:59]}  e6 {[%clk 0:02:51]} 4. Nbd2 {[%clk 0:02:58]}  Be7 {[%clk 0:02:52]} 5. e3 {[%clk 0:02:59]}  h6 {[%clk 0:02:50]} 6. Bh4 {[%clk 0:02:57]}  Nbd7 {[%clk 0:02:49]} 7. Bd3 {[%clk 0:02:56]}  c5 {[%clk 0:02:48]} 8. c3 {[%clk 0:02:56]}  O-O {[%clk 0:02:45]} 9. Ne5 {[%clk 0:02:46]}  Ne8 {[%clk 0:02:40]} 10. Bxe7 {[%clk 0:02:39]}  Qxe7 {[%clk 0:02:40]} 11. f4 {[%clk 0:02:38]}  Nd6 {[%clk 0:02:36]} 12. Qh5 {[%clk 0:02:32]}  Nf6 {[%clk 0:02:33]} 13. Qh4 {[%clk 0:02:29]}  Nf5 {[%clk 0:02:24]} 14. Qf2 {[%clk 0:02:18]}  cxd4 {[%clk 0:02:00]} 15. exd4 {[%clk 0:02:18]}  Nd6 {[%clk 0:02:01]} 16. Qf3 {[%clk 0:02:14]}  b5 {[%clk 0:01:58]} 17. O-O {[%clk 0:02:12]}  Bb7 {[%clk 0:01:51]} 18. a4 {[%clk 0:01:58]}  a6 {[%clk 0:01:43]} 19. Qh3 {[%clk 0:01:43]}  Nfe4 {[%clk 0:01:28]} 20. Ndf3 {[%clk 0:01:43]}  Rfb8 {[%clk 0:01:17]} 21. axb5 {[%clk 0:01:29]}  axb5 {[%clk 0:01:11]} 22. g4 {[%clk 0:01:18]}  f6 {[%clk 0:01:02]} 23. Ng6 {[%clk 0:01:13]}  Qf7 {[%clk 0:01:02]} 24. Qh5 {[%clk 0:00:54]}  Bc6 {[%clk 0:00:43]} 25. Nfh4 {[%clk 0:00:51]}  Be8 {[%clk 0:00:28]} 26. f5 {[%clk 0:00:51]}  Ng5 {[%clk 0:00:20]} 27. Kh1 {[%clk 0:00:49]}  exf5 {[%clk 0:00:18]} 28. gxf5 {[%clk 0:00:45]}  Rxa1 {[%clk 0:00:18]} 29. Rxa1 {[%clk 0:00:43]}  b4 {[%clk 0:00:17]} 30. Re1 {[%clk 0:00:43]}  Nde4 {[%clk 0:00:17]} 31. c4 {[%clk 0:00:31]}  Nf2+ {[%clk 0:00:17]} 32. Kg2 {[%clk 0:00:30]}  Nxd3 {[%clk 0:00:17]} 33. Re7 {[%clk 0:00:28]}  Nf4+ {[%clk 0:00:15]} 34. Kf1 {[%clk 0:00:25]}  Nxh5 {[%clk 0:00:14]} 35. Rxf7 {[%clk 0:00:25]}  Bxf7 {[%clk 0:00:15]} 36. Ne7+ {[%clk 0:00:25]}  Kf8 {[%clk 0:00:15]} 37. Nc6 {[%clk 0:00:23]}  Rb6 {[%clk 0:00:15]} 38. cxd5 {[%clk 0:00:23]}  Bxd5 {[%clk 0:00:14]} 39. Na5 {[%clk 0:00:23]}  Rb5 {[%clk 0:00:14]} 40. Ng6+ {[%clk 0:00:21]}  Kf7 {[%clk 0:00:15]} 41. Nf4 {[%clk 0:00:21]}  Nxf4 {[%clk 0:00:15]} 42. h4 {[%clk 0:00:21]}  Rxa5 {[%clk 0:00:14]} 43. hxg5 {[%clk 0:00:21]}  hxg5 {[%clk 0:00:15]} 44. b3 {[%clk 0:00:19]}  Ra3 {[%clk 0:00:15]} 45. Ke1 {[%clk 0:00:19]}  Rxb3 {[%clk 0:00:16]} 46. Kd1 {[%clk 0:00:20]}  Rc3 {[%clk 0:00:17]} 47. Kd2 {[%clk 0:00:20]}  Ne6 {[%clk 0:00:18]} 48. Kd1 {[%clk 0:00:20]}  Nxd4 {[%clk 0:00:18]} 49. Kd2 {[%clk 0:00:19]}  Nxf5 {[%clk 0:00:19]} 50. Ke2 {[%clk 0:00:19]}  Ne7 {[%clk 0:00:20]} 51. Kf2 {[%clk 0:00:20]}  Be6 {[%clk 0:00:21]} 52. Kg2 {[%clk 0:00:20]}  f5 {[%clk 0:00:22]} 53. Kf2 {[%clk 0:00:20]}  g6 {[%clk 0:00:23]} 54. Ke2 {[%clk 0:00:21]}  g4 {[%clk 0:00:24]} 55. Kd2 {[%clk 0:00:22]}  f4 {[%clk 0:00:24]} 56. Ke2 {[%clk 0:00:23]}  g5 {[%clk 0:00:25]} 57. Kf2 {[%clk 0:00:23]}  Re3 {[%clk 0:00:26]} 58. Kf1 {[%clk 0:00:23]}  b3 {[%clk 0:00:27]} 59. Kg2 {[%clk 0:00:24]}  b2 {[%clk 0:00:27]} 60. Kh2 {[%clk 0:00:24]}  b1=Q {[%clk 0:00:25]} 0-1


[Site "https://www.chess.com"]

[Event "Titled Tuesday Blitz March 07 Early 2023"]
[White "Silvestre, Christian"]
[Black "Fajdetic, Hrvoje"]
[WhiteFideId "30956269"]
[BlackFideId "14501945"]
[WhiteElo "2395"]
[BlackElo "2185"]
[Result "0-1"]
[Round "05"]
[TimeControl "180+2"]
[Date "2023.03.07"]
[WhiteClock "0:00:21"]
[BlackClock "0:00:19"]

1. d4 {[%clk 0:02:57]}  c6 {[%clk 0:02:55]} 2. Bg5 {[%clk 0:02:57]}  g6 {[%clk 0:02:51]} 3. Nc3 {[%clk 0:02:56]}  Bg7 {[%clk 0:02:47]} 4. Qd2 {[%clk 0:02:56]}  d5 {[%clk 0:02:45]} 5. O-O-O {[%clk 0:02:55]}  h6 {[%clk 0:02:43]} 6. Bf4 {[%clk 0:02:54]}  Nf6 {[%clk 0:02:37]} 7. f3 {[%clk 0:02:54]}  b5 {[%clk 0:02:33]} 8. h4 {[%clk 0:02:47]}  b4 {[%clk 0:02:27]} 9. Na4 {[%clk 0:02:46]}  a5 {[%clk 0:02:27]} 10. g4 {[%clk 0:02:45]}  Nbd7 {[%clk 0:02:26]} 11. g5 {[%clk 0:02:40]}  hxg5 {[%clk 0:02:24]} 12. Bxg5 {[%clk 0:02:40]}  Nb6 {[%clk 0:02:20]} 13. Nxb6 {[%clk 0:02:36]}  Qxb6 {[%clk 0:02:21]} 14. Bh3 {[%clk 0:02:34]}  Bxh3 {[%clk 0:02:17]} 15. Nxh3 {[%clk 0:02:34]}  a4 {[%clk 0:02:16]} 16. Nf4 {[%clk 0:02:32]}  b3 {[%clk 0:02:14]} 17. cxb3 {[%clk 0:02:32]}  a3 {[%clk 0:02:13]} 18. Kb1 {[%clk 0:02:28]}  axb2 {[%clk 0:02:13]} 19. Qxb2 {[%clk 0:02:28]}  Nh5 {[%clk 0:02:04]} 20. Nxh5 {[%clk 0:02:28]}  Rxh5 {[%clk 0:02:05]} 21. e4 {[%clk 0:02:23]}  dxe4 {[%clk 0:01:56]} 22. fxe4 {[%clk 0:02:24]}  Rd8 {[%clk 0:01:54]} 23. e5 {[%clk 0:02:23]}  c5 {[%clk 0:01:44]} 24. dxc5 {[%clk 0:02:18]}  Rxd1+ {[%clk 0:01:43]} 25. Rxd1 {[%clk 0:02:18]}  Qxc5 {[%clk 0:01:44]} 26. Qg2 {[%clk 0:01:55]}  Qc8 {[%clk 0:01:31]} 27. e6 {[%clk 0:01:45]}  fxe6 {[%clk 0:01:21]} 28. Qe4 {[%clk 0:01:41]}  Kf7 {[%clk 0:01:15]} 29. Rf1+ {[%clk 0:01:38]}  Bf6 {[%clk 0:01:15]} 30. Qf3 {[%clk 0:01:05]}  Qd8 {[%clk 0:00:49]} 31. Rd1 {[%clk 0:01:00]}  Qc7 {[%clk 0:00:43]} 32. Bxf6 {[%clk 0:00:54]}  exf6 {[%clk 0:00:42]} 33. Qf2 {[%clk 0:00:40]}  Rd5 {[%clk 0:00:25]} 34. Rc1 {[%clk 0:00:34]}  Qe5 {[%clk 0:00:22]} 35. Qa7+ {[%clk 0:00:32]}  Ke8 {[%clk 0:00:20]} 36. Rc8+ {[%clk 0:00:31]}  Rd8 {[%clk 0:00:19]} 37. Qa4+ {[%clk 0:00:31]}  Ke7 {[%clk 0:00:20]} 38. Qb4+ {[%clk 0:00:31]}  Ke8 {[%clk 0:00:19]} 39. Qa4+ {[%clk 0:00:29]}  Ke7 {[%clk 0:00:19]} 40. Qa7+ {[%clk 0:00:21]}  Ke8 {[%clk 0:00:19]} 0-1


[Site "https://www.chess.com"]

[Event "Titled Tuesday Blitz March 07 Early 2023"]
[White "Chabris, Christopher"]
[Black "Ansh M Shah"]
[WhiteFideId "2005263"]
[BlackFideId "25033379"]
[WhiteElo "2216"]
[BlackElo "2084"]
[Result "0-1"]
[Round "05"]
[TimeControl "180+2"]
[Date "2023.03.07"]
[WhiteClock "0:00:01"]
[BlackClock "0:00:04"]

1. e4 {[%clk 0:03:00]}  c6 {[%clk 0:02:59]} 2. d4 {[%clk 0:02:59]}  d5 {[%clk 0:02:59]} 3. e5 {[%clk 0:03:00]}  Bf5 {[%clk 0:02:59]} 4. Nf3 {[%clk 0:03:00]}  e6 {[%clk 0:02:59]} 5. Be2 {[%clk 0:03:00]}  c5 {[%clk 0:03:00]} 6. Be3 {[%clk 0:03:00]}  Qb6 {[%clk 0:03:00]} 7. Nc3 {[%clk 0:02:59]}  Nc6 {[%clk 0:03:00]} 8. O-O {[%clk 0:02:57]}  Qxb2 {[%clk 0:02:59]} 9. Qe1 {[%clk 0:02:56]}  cxd4 {[%clk 0:02:59]} 10. Bxd4 {[%clk 0:02:56]}  Nxd4 {[%clk 0:02:56]} 11. Nxd4 {[%clk 0:02:56]}  Bb4 {[%clk 0:02:57]} 12. Rb1 {[%clk 0:02:56]}  Bxc3 {[%clk 0:02:56]} 13. Rxb2 {[%clk 0:02:50]}  Bxe1 {[%clk 0:02:56]} 14. Nxf5 {[%clk 0:02:49]}  exf5 {[%clk 0:02:40]} 15. Rxe1 {[%clk 0:02:41]}  b6 {[%clk 0:02:39]} 16. a4 {[%clk 0:02:02]}  Ne7 {[%clk 0:02:10]} 17. a5 {[%clk 0:02:00]}  O-O {[%clk 0:01:06]} 18. axb6 {[%clk 0:01:57]}  axb6 {[%clk 0:01:07]} 19. Rxb6 {[%clk 0:01:55]}  Ng6 {[%clk 0:01:08]} 20. e6 {[%clk 0:01:17]}  fxe6 {[%clk 0:01:03]} 21. Rxe6 {[%clk 0:01:16]}  Nf4 {[%clk 0:00:17]} 22. Re5 {[%clk 0:01:07]}  Rfe8 {[%clk 0:00:16]} 23. Rxe8+ {[%clk 0:00:50]}  Rxe8 {[%clk 0:00:17]} 24. Kf1 {[%clk 0:00:50]}  Kf7 {[%clk 0:00:14]} 25. g3 {[%clk 0:00:43]}  Nxe2 {[%clk 0:00:12]} 26. Rxe2 {[%clk 0:00:43]}  Rc8 {[%clk 0:00:12]} 27. Re5 {[%clk 0:00:32]}  Kf6 {[%clk 0:00:10]} 28. f4 {[%clk 0:00:32]}  Rxc2 {[%clk 0:00:09]} 29. Rxd5 {[%clk 0:00:31]}  Rxh2 {[%clk 0:00:09]} 30. Rd6+ {[%clk 0:00:29]}  Kf7 {[%clk 0:00:09]} 31. Rd7+ {[%clk 0:00:28]}  Kg6 {[%clk 0:00:10]} 32. Kg1 {[%clk 0:00:27]}  Rb2 {[%clk 0:00:08]} 33. Rd6+ {[%clk 0:00:27]}  Kh5 {[%clk 0:00:08]} 34. Rd7 {[%clk 0:00:27]}  Kh6 {[%clk 0:00:02]} 35. Rf7 {[%clk 0:00:24]}  g6 {[%clk 0:00:02]} 36. Re7 {[%clk 0:00:22]}  Ra2 {[%clk 0:00:03]} 37. Rd7 {[%clk 0:00:22]}  Rc2 {[%clk 0:00:03]} 38. Re7 {[%clk 0:00:22]}  Rb2 {[%clk 0:00:04]} 39. Rc7 {[%clk 0:00:21]}  Kh5 {[%clk 0:00:04]} 40. Rxh7+ {[%clk 0:00:21]}  Kg4 {[%clk 0:00:05]} 41. Rh6 {[%clk 0:00:20]}  Kxg3 {[%clk 0:00:05]} 42. Rxg6+ {[%clk 0:00:20]}  Kxf4 {[%clk 0:00:06]} 43. Rc6 {[%clk 0:00:18]}  Kg4 {[%clk 0:00:04]} 44. Rc3 {[%clk 0:00:15]}  f4 {[%clk 0:00:03]} 45. Rc4 {[%clk 0:00:14]}  Kg3 {[%clk 0:00:03]} 46. Kf1 {[%clk 0:00:12]}  Rb1+ {[%clk 0:00:01]} 47. Ke2 {[%clk 0:00:12]}  f3+ {[%clk 0:00:01]} 48. Ke3 {[%clk 0:00:11]}  Re1+ {[%clk 0:00:02]} 49. Kd2 {[%clk 0:00:11]}  Re8 {[%clk 0:00:03]} 50. Rc3 {[%clk 0:00:10]}  Kg2 {[%clk 0:00:03]} 51. Rc6 {[%clk 0:00:09]}  f2 {[%clk 0:00:03]} 52. Rg6+ {[%clk 0:00:08]}  Kf1 {[%clk 0:00:04]} 53. Kd3 {[%clk 0:00:08]}  Rd8+ {[%clk 0:00:04]} 54. Ke3 {[%clk 0:00:06]}  Re8+ {[%clk 0:00:05]} 55. Kd2 {[%clk 0:00:06]}  Rd8+ {[%clk 0:00:04]} 56. Ke3 {[%clk 0:00:06]}  Ke1 {[%clk 0:00:04]} 57. Ra6 {[%clk 0:00:02]}  f1=Q {[%clk 0:00:03]} 58. Ra1+ {[%clk 0:00:01]}  Rd1 {[%clk 0:00:04]} 0-1


[Site "https://www.chess.com"]

[Event "Titled Tuesday Blitz March 07 Early 2023"]
[White "Leve, Nitai"]
[Black "Araujo, Everson De Moura"]
[WhiteFideId "2006898"]
[BlackFideId "22737197"]
[WhiteElo "2144"]
[BlackElo "2035"]
[Result "1-0"]
[Round "05"]
[TimeControl "180+2"]
[Date "2023.03.07"]
[WhiteClock "0:00:10"]
[BlackClock "0:00:23"]

1. e4 {[%clk 0:03:00]}  e6 {[%clk 0:02:52]} 2. d4 {[%clk 0:02:53]}  d5 {[%clk 0:02:52]} 3. Nd2 {[%clk 0:02:50]}  Nc6 {[%clk 0:02:50]} 4. c3 {[%clk 0:02:46]}  e5 {[%clk 0:02:49]} 5. exd5 {[%clk 0:02:36]}  Qxd5 {[%clk 0:02:50]} 6. Ngf3 {[%clk 0:02:36]}  exd4 {[%clk 0:02:47]} 7. Bc4 {[%clk 0:02:34]}  Qh5 {[%clk 0:02:47]} 8. cxd4 {[%clk 0:02:30]}  Be6 {[%clk 0:02:45]} 9. Bxe6 {[%clk 0:02:24]}  fxe6 {[%clk 0:02:46]} 10. O-O {[%clk 0:02:23]}  O-O-O {[%clk 0:02:44]} 11. Qb3 {[%clk 0:02:20]}  Nf6 {[%clk 0:02:29]} 12. Qxe6+ {[%clk 0:02:17]}  Kb8 {[%clk 0:02:30]} 13. Ne4 {[%clk 0:02:12]}  Nxe4 {[%clk 0:02:15]} 14. Qxe4 {[%clk 0:02:13]}  Bd6 {[%clk 0:02:15]} 15. h3 {[%clk 0:01:48]}  Rhe8 {[%clk 0:02:11]} 16. Qg4 {[%clk 0:01:35]}  Qxg4 {[%clk 0:01:59]} 17. hxg4 {[%clk 0:01:36]}  Bb4 {[%clk 0:01:58]} 18. Be3 {[%clk 0:01:31]}  Re4 {[%clk 0:01:55]} 19. g5 {[%clk 0:01:04]}  Ba5 {[%clk 0:01:53]} 20. Rfd1 {[%clk 0:00:55]}  Bb6 {[%clk 0:01:52]} 21. d5 {[%clk 0:00:48]}  Ne5 {[%clk 0:01:37]} 22. Nd4 {[%clk 0:00:22]}  Rxd5 {[%clk 0:01:27]} 23. Ne6 {[%clk 0:00:20]}  Rxd1+ {[%clk 0:00:47]} 24. Rxd1 {[%clk 0:00:21]}  c6 {[%clk 0:00:47]} 25. Bxb6 {[%clk 0:00:15]}  axb6 {[%clk 0:00:48]} 26. Nxg7 {[%clk 0:00:13]}  Rg4 {[%clk 0:00:46]} 27. Ne6 {[%clk 0:00:11]}  Ka7 {[%clk 0:00:40]} 28. f4 {[%clk 0:00:11]}  Nf3+ {[%clk 0:00:38]} 29. Kf2 {[%clk 0:00:11]}  Nh4 {[%clk 0:00:37]} 30. g3 {[%clk 0:00:10]}  Nf5 {[%clk 0:00:37]} 31. Kf3 {[%clk 0:00:10]}  Rxg3+ {[%clk 0:00:36]} 32. Ke4 {[%clk 0:00:09]}  Ne3 {[%clk 0:00:33]} 33. Rd3 {[%clk 0:00:08]}  Nf1 {[%clk 0:00:26]} 34. Rxg3 {[%clk 0:00:08]}  Nxg3+ {[%clk 0:00:27]} 35. Ke5 {[%clk 0:00:09]}  c5 {[%clk 0:00:25]} 36. f5 {[%clk 0:00:09]}  Nxf5 {[%clk 0:00:22]} 37. Kxf5 {[%clk 0:00:10]}  b5 {[%clk 0:00:23]} 38. Nxc5 {[%clk 0:00:10]}  Kb6 {[%clk 0:00:23]} 39. Ne4 {[%clk 0:00:09]}  Kc6 {[%clk 0:00:23]} 40. Nf6 {[%clk 0:00:10]} 1-0


[Site "https://www.chess.com"]

[Event "Titled Tuesday Blitz March 07 Early 2023"]
[White "Osinovsky, Stepan"]
[Black "Hartikainen, Jarmo"]
[WhiteFideId "4157354"]
[BlackFideId "503134"]
[WhiteElo "2222"]
[BlackElo "2205"]
[Result "1-0"]
[Round "05"]
[TimeControl "180+2"]
[Date "2023.03.07"]
[WhiteClock "0:01:01"]
[BlackClock "0:00:02"]

1. Nf3 {[%clk 0:03:00]}  Nf6 {[%clk 0:02:54]} 2. g3 {[%clk 0:02:59]}  g6 {[%clk 0:02:54]} 3. Bg2 {[%clk 0:03:00]}  Bg7 {[%clk 0:02:54]} 4. O-O {[%clk 0:03:01]}  O-O {[%clk 0:02:55]} 5. d3 {[%clk 0:03:02]}  d5 {[%clk 0:02:51]} 6. Nbd2 {[%clk 0:03:03]}  c5 {[%clk 0:02:50]} 7. e4 {[%clk 0:03:03]}  dxe4 {[%clk 0:02:48]} 8. Re1 {[%clk 0:03:04]}  exf3 {[%clk 0:02:46]} 9. Nxf3 {[%clk 0:03:04]}  Nc6 {[%clk 0:02:42]} 10. Be3 {[%clk 0:02:48]}  Qa5 {[%clk 0:02:21]} 11. Qc1 {[%clk 0:02:37]}  Bg4 {[%clk 0:02:11]} 12. h3 {[%clk 0:02:29]}  Bxf3 {[%clk 0:02:11]} 13. Bxf3 {[%clk 0:02:30]}  Nd4 {[%clk 0:01:41]} 14. Bxb7 {[%clk 0:02:27]}  Rab8 {[%clk 0:01:41]} 15. Bg2 {[%clk 0:02:19]}  Nf5 {[%clk 0:01:39]} 16. Bf4 {[%clk 0:02:14]}  Rbd8 {[%clk 0:01:12]} 17. g4 {[%clk 0:02:03]}  Nh4 {[%clk 0:01:03]} 18. Rxe7 {[%clk 0:02:01]}  Nxg2 {[%clk 0:01:02]} 19. Bc7 {[%clk 0:02:00]}  Qa6 {[%clk 0:00:49]} 20. Bxd8 {[%clk 0:01:56]}  Rxd8 {[%clk 0:00:47]} 21. Kxg2 {[%clk 0:01:55]}  Qc6+ {[%clk 0:00:46]} 22. f3 {[%clk 0:01:54]}  Nd5 {[%clk 0:00:38]} 23. Re4 {[%clk 0:01:54]}  f5 {[%clk 0:00:34]} 24. gxf5 {[%clk 0:01:39]}  gxf5 {[%clk 0:00:34]} 25. Qg5 {[%clk 0:01:39]}  Qf6 {[%clk 0:00:24]} 26. Qxf6 {[%clk 0:01:35]}  Bxf6 {[%clk 0:00:25]} 27. Ra4 {[%clk 0:01:34]}  Bxb2 {[%clk 0:00:22]} 28. Re1 {[%clk 0:01:32]}  Bd4 {[%clk 0:00:18]} 29. Rxa7 {[%clk 0:01:25]}  Ne3+ {[%clk 0:00:17]} 30. Kg3 {[%clk 0:01:23]}  f4+ {[%clk 0:00:17]} 31. Kh2 {[%clk 0:01:18]}  Rd6 {[%clk 0:00:16]} 32. Rg1+ {[%clk 0:01:16]}  Rg6 {[%clk 0:00:16]} 33. Rxg6+ {[%clk 0:01:15]}  hxg6 {[%clk 0:00:17]} 34. a4 {[%clk 0:01:14]}  Nxc2 {[%clk 0:00:16]} 35. a5 {[%clk 0:01:13]}  Nb4 {[%clk 0:00:16]} 36. a6 {[%clk 0:01:13]}  Nxd3 {[%clk 0:00:16]} 37. Rd7 {[%clk 0:01:10]}  Ne5 {[%clk 0:00:12]} 38. Rxd4 {[%clk 0:01:07]}  cxd4 {[%clk 0:00:06]} 39. a7 {[%clk 0:01:07]}  Nxf3+ {[%clk 0:00:04]} 40. Kg2 {[%clk 0:01:05]}  Nh4+ {[%clk 0:00:04]} 41. Kf2 {[%clk 0:01:04]}  d3 {[%clk 0:00:04]} 42. a8=Q+ {[%clk 0:01:04]}  Kg7 {[%clk 0:00:03]} 43. Qd5 {[%clk 0:01:05]}  Kh6 {[%clk 0:00:01]} 44. Qxd3 {[%clk 0:01:03]}  g5 {[%clk 0:00:01]} 45. Qd6+ {[%clk 0:01:03]}  Kh5 {[%clk 0:00:02]} 46. Qd7 {[%clk 0:01:01]} 1-0


[Site "https://www.chess.com"]

[Event "Titled Tuesday Blitz March 07 Early 2023"]
[White "McLaren, Brian"]
[Black "Rosh Jain"]
[WhiteFideId "2604612"]
[BlackFideId "25789465"]
[WhiteElo "2132"]
[BlackElo "2233"]
[Result "0-1"]
[Round "05"]
[TimeControl "180+2"]
[Date "2023.03.07"]
[WhiteClock "0:00:31"]
[BlackClock "0:00:13"]

1. e4 {[%clk 0:02:10]}  c5 {[%clk 0:02:58]} 2. Nc3 {[%clk 0:01:43]}  d6 {[%clk 0:02:56]} 3. g3 {[%clk 0:01:43]}  g6 {[%clk 0:02:55]} 4. Bg2 {[%clk 0:01:44]}  Bg7 {[%clk 0:02:55]} 5. d3 {[%clk 0:01:44]}  Nc6 {[%clk 0:02:54]} 6. Nge2 {[%clk 0:01:43]}  Nf6 {[%clk 0:02:54]} 7. O-O {[%clk 0:01:43]}  O-O {[%clk 0:02:54]} 8. h3 {[%clk 0:01:43]}  e6 {[%clk 0:02:54]} 9. f4 {[%clk 0:01:43]}  a6 {[%clk 0:02:51]} 10. Be3 {[%clk 0:01:43]}  Bd7 {[%clk 0:02:44]} 11. Qd2 {[%clk 0:01:43]}  b5 {[%clk 0:02:44]} 12. f5 {[%clk 0:01:41]}  b4 {[%clk 0:02:37]} 13. Nd1 {[%clk 0:01:41]}  Ne5 {[%clk 0:02:33]} 14. g4 {[%clk 0:01:40]}  Ne8 {[%clk 0:01:51]} 15. Bh6 {[%clk 0:01:32]}  Bc6 {[%clk 0:01:44]} 16. Bxg7 {[%clk 0:01:31]}  Kxg7 {[%clk 0:01:43]} 17. Ne3 {[%clk 0:01:25]}  Qg5 {[%clk 0:01:30]} 18. fxe6 {[%clk 0:01:11]}  fxe6 {[%clk 0:01:30]} 19. Rxf8 {[%clk 0:01:09]}  Kxf8 {[%clk 0:01:30]} 20. Rf1+ {[%clk 0:01:08]}  Kg8 {[%clk 0:01:27]} 21. Nf4 {[%clk 0:01:07]}  Ng7 {[%clk 0:01:22]} 22. Qf2 {[%clk 0:01:01]}  Rf8 {[%clk 0:01:19]} 23. Qg3 {[%clk 0:01:01]}  h5 {[%clk 0:01:06]} 24. h4 {[%clk 0:01:01]}  Qe7 {[%clk 0:00:45]} 25. g5 {[%clk 0:01:01]}  Bb5 {[%clk 0:00:38]} 26. b3 {[%clk 0:01:00]}  Rf7 {[%clk 0:00:34]} 27. Bh3 {[%clk 0:00:59]}  Kh7 {[%clk 0:00:33]} 28. Nc4 {[%clk 0:00:52]}  Bxc4 {[%clk 0:00:31]} 29. bxc4 {[%clk 0:00:52]}  Nc6 {[%clk 0:00:22]} 30. Rf2 {[%clk 0:00:51]}  Nd4 {[%clk 0:00:21]} 31. Qe3 {[%clk 0:00:40]}  Qf8 {[%clk 0:00:20]} 32. e5 {[%clk 0:00:34]}  dxe5 {[%clk 0:00:13]} 33. Qxe5 {[%clk 0:00:33]}  Rxf4 {[%clk 0:00:14]} 34. Rxf4 {[%clk 0:00:32]}  Qxf4 {[%clk 0:00:14]} 35. Qxf4 {[%clk 0:00:31]}  Ne2+ {[%clk 0:00:14]} 36. Kf2 {[%clk 0:00:31]}  Nxf4 {[%clk 0:00:14]} 37. Bf1 {[%clk 0:00:31]}  e5 {[%clk 0:00:13]} 0-1


[Site "https://www.chess.com"]

[Event "Titled Tuesday Blitz March 07 Early 2023"]
[White "Grabinsky, Vladimir"]
[Black "MrAnnihilation"]
[WhiteFideId "14107074"]
[WhiteElo "2027"]
[BlackElo "2356"]
[Result "1-0"]
[Round "05"]
[TimeControl "180+2"]
[Date "2023.03.07"]
[WhiteClock "0:00:18"]
[BlackClock "0:00:54"]

1. e4 {[%clk 0:02:57]}  c5 {[%clk 0:02:57]} 2. b4 {[%clk 0:02:56]}  cxb4 {[%clk 0:02:54]} 3. a3 {[%clk 0:02:56]}  e5 {[%clk 0:02:48]} 4. Nf3 {[%clk 0:02:53]}  Nc6 {[%clk 0:02:47]} 5. Bc4 {[%clk 0:02:54]}  h6 {[%clk 0:02:40]} 6. Bb2 {[%clk 0:02:46]}  bxa3 {[%clk 0:02:37]} 7. Nxa3 {[%clk 0:02:44]}  d6 {[%clk 0:02:37]} 8. d4 {[%clk 0:01:53]}  exd4 {[%clk 0:02:32]} 9. Nxd4 {[%clk 0:01:54]}  Nf6 {[%clk 0:02:32]} 10. O-O {[%clk 0:01:44]}  Be7 {[%clk 0:02:30]} 11. Re1 {[%clk 0:01:42]}  O-O {[%clk 0:02:30]} 12. h3 {[%clk 0:01:06]}  a6 {[%clk 0:02:28]} 13. Qf3 {[%clk 0:01:03]}  Nxd4 {[%clk 0:02:17]} 14. Bxd4 {[%clk 0:01:02]}  Nd7 {[%clk 0:02:00]} 15. Rad1 {[%clk 0:00:53]}  Qc7 {[%clk 0:01:30]} 16. Qg3 {[%clk 0:00:46]}  Ne5 {[%clk 0:01:27]} 17. Bd5 {[%clk 0:00:41]}  Bf6 {[%clk 0:01:16]} 18. f4 {[%clk 0:00:37]}  Nd7 {[%clk 0:01:16]} 19. e5 {[%clk 0:00:36]}  dxe5 {[%clk 0:01:14]} 20. fxe5 {[%clk 0:00:36]}  Re8 {[%clk 0:01:12]} 21. exf6 {[%clk 0:00:31]}  Qxg3 {[%clk 0:01:05]} 22. Rxe8+ {[%clk 0:00:31]}  Kh7 {[%clk 0:01:05]} 23. fxg7 {[%clk 0:00:24]}  Nf6 {[%clk 0:00:55]} 24. Bxf6 {[%clk 0:00:20]}  Bxh3 {[%clk 0:00:55]} 25. Be4+ {[%clk 0:00:19]}  Qg6 {[%clk 0:00:52]} 26. Bxg6+ {[%clk 0:00:19]}  Kxg6 {[%clk 0:00:53]} 27. g8=Q+ {[%clk 0:00:18]}  Kxf6 {[%clk 0:00:53]} 28. Qh8+ {[%clk 0:00:17]}  Kg6 {[%clk 0:00:53]} 29. Rxa8 {[%clk 0:00:17]}  Kh5 {[%clk 0:00:54]} 30. Rg8 {[%clk 0:00:17]}  Be6 {[%clk 0:00:55]} 31. Qf6 {[%clk 0:00:17]}  b6 {[%clk 0:00:54]} 32. Qf3+ {[%clk 0:00:17]}  Kh4 {[%clk 0:00:54]} 33. Rd4+ {[%clk 0:00:18]} 1-0


[Site "https://www.chess.com"]

[Event "Titled Tuesday Blitz March 07 Early 2023"]
[White "Rostomyan, Mikayel"]
[Black "Thomas, Anysia"]
[WhiteFideId "13313754"]
[BlackFideId "670472"]
[WhiteElo "2009"]
[BlackElo "2091"]
[Result "1-0"]
[Round "05"]
[TimeControl "180+2"]
[Date "2023.03.07"]
[WhiteClock "0:01:05"]
[BlackClock "0:00:01"]

1. e4 {[%clk 0:02:56]}  c5 {[%clk 0:02:57]} 2. Nf3 {[%clk 0:02:54]}  g6 {[%clk 0:02:55]} 3. d4 {[%clk 0:02:54]}  cxd4 {[%clk 0:02:42]} 4. Qxd4 {[%clk 0:02:54]}  Nf6 {[%clk 0:02:42]} 5. e5 {[%clk 0:02:53]}  Nc6 {[%clk 0:02:42]} 6. Qd1 {[%clk 0:02:42]}  Nxe5 {[%clk 0:02:35]} 7. Nxe5 {[%clk 0:02:40]}  Qa5+ {[%clk 0:02:35]} 8. Bd2 {[%clk 0:02:41]}  Qxe5+ {[%clk 0:02:35]} 9. Be2 {[%clk 0:02:42]}  Bg7 {[%clk 0:02:10]} 10. Bc3 {[%clk 0:02:42]}  Qg5 {[%clk 0:01:39]} 11. O-O {[%clk 0:02:40]}  O-O {[%clk 0:01:39]} 12. Nd2 {[%clk 0:02:41]}  d6 {[%clk 0:01:35]} 13. Bf3 {[%clk 0:02:30]}  Rb8 {[%clk 0:01:19]} 14. Re1 {[%clk 0:02:21]}  Be6 {[%clk 0:01:19]} 15. Nb3 {[%clk 0:02:10]}  Qf4 {[%clk 0:01:07]} 16. Nd4 {[%clk 0:02:06]}  Bg4 {[%clk 0:00:51]} 17. Rxe7 {[%clk 0:01:58]}  Bxf3 {[%clk 0:00:41]} 18. Qxf3 {[%clk 0:01:57]}  Qxf3 {[%clk 0:00:29]} 19. Nxf3 {[%clk 0:01:56]}  Rfe8 {[%clk 0:00:24]} 20. Rxe8+ {[%clk 0:01:51]}  Rxe8 {[%clk 0:00:23]} 21. Re1 {[%clk 0:01:50]}  Rxe1+ {[%clk 0:00:19]} 22. Nxe1 {[%clk 0:01:51]}  Ne4 {[%clk 0:00:09]} 23. Bxg7 {[%clk 0:01:52]}  Kxg7 {[%clk 0:00:09]} 24. f3 {[%clk 0:01:52]}  Nc5 {[%clk 0:00:08]} 25. Kf2 {[%clk 0:01:53]}  Kf6 {[%clk 0:00:09]} 26. b4 {[%clk 0:01:53]}  Na4 {[%clk 0:00:08]} 27. Ke3 {[%clk 0:01:52]}  Ke6 {[%clk 0:00:09]} 28. Kd4 {[%clk 0:01:52]}  Nb6 {[%clk 0:00:08]} 29. c4 {[%clk 0:01:51]}  f5 {[%clk 0:00:08]} 30. Nd3 {[%clk 0:01:51]}  g5 {[%clk 0:00:07]} 31. c5 {[%clk 0:01:48]}  Na4 {[%clk 0:00:04]} 32. h4 {[%clk 0:01:47]}  h6 {[%clk 0:00:04]} 33. h5 {[%clk 0:01:43]}  a6 {[%clk 0:00:03]} 34. g4 {[%clk 0:01:35]}  dxc5+ {[%clk 0:00:02]} 35. Nxc5+ {[%clk 0:01:14]}  Nxc5 {[%clk 0:00:02]} 36. bxc5 {[%clk 0:01:08]}  fxg4 {[%clk 0:00:01]} 37. fxg4 {[%clk 0:01:09]}  Kd7 {[%clk 0:00:01]} 38. Kd5 {[%clk 0:01:08]}  Kc7 {[%clk 0:00:01]} 39. a3 {[%clk 0:01:05]} 1-0


[Site "https://www.chess.com"]